bitfinex-derivatives/quotes_BNBF0:USTF0_20250128
["timestamp","ask_amount","ask_price","bid_price","bid_amount"]
[1738053907627,0.27186287,676.56,675.22,1.10450818]
[1738053911127,0.27186722,676.55,675.06,0.29626996]
[1738053912324,1.0988231,676.53,675.08,1.10450818]
[1738053912527,0.27186722,676.52,675.08,1.10450818]
[1738053912829,0.27186722,676.52,675.09,0.29625679]
[1738053915131,1.0988231,676.38,675.24,1.10450818]
[1738053915325,0.27186722,676.37,675.24,1.10450818]
[1738053917832,0.27186722,676.37,675.09,0.29625679]
[1738053917833,1.0988231,676.32,675.3,1.10450818]
[1738053918027,0.27186722,676.31,675.3,1.10450818]
[1738053920228,0.27186084,676.3,675.3,1.10450818]
[1738053920531,0.27186084,676.31,675.3,1.10450818]
[1738053924234,0.27186084,676.31,675.36,1.10450818]
[1738053926235,0.27186084,676.31,675.31,1.10450818]
[1738053929036,0.27186084,676.31,675.3,1.10450818]
[1738053934136,0.27186084,676.31,675.09,0.29625679]
[1738053934137,0.27186084,676.31,675.37,1.10450818]
[1738053936341,1.0988231,676.43,675.37,1.10450818]
[1738053936542,0.27183122,676.42,675.37,1.10450818]
[1738053937443,0.27183122,676.42,675.31,1.10450818]
[1738053937738,0.27183122,676.41,675.31,1.10450818]
[1738053937942,0.27183122,676.4,675.31,1.10450818]
[1738053938141,0.27183122,676.48,675.31,1.10450818]
[1738053939740,1.0988231,676.49,675.31,1.10450818]
[1738053939941,0.27183367,676.48,675.31,1.10450818]
[1738053940142,0.27183544,676.47,675.31,1.10450818]
[1738053940343,0.27183544,676.48,675.31,1.10450818]
[1738053940640,0.27183544,676.47,675.31,1.10450818]
[1738053940841,0.27183544,676.46,675.31,1.10450818]
[1738053941042,0.27183544,676.45,675.28,1.10450818]
[1738053941241,0.27183544,676.44,675.29,0.29616905]
[1738053941435,0.27183544,676.43,675.29,0.29616905]
[1738053941635,0.27183544,676.48,675.29,0.29616905]
[1738053941840,0.27183584,676.47,675.29,0.29616905]
[1738053942042,0.27183584,676.46,675.29,0.29616905]
[1738053942237,0.27183584,676.48,675.29,0.29616905]
[1738053942439,0.27183584,676.47,675.29,0.29616905]
[1738053942637,0.27183584,676.48,675.29,0.29616905]
[1738053942943,0.27183584,676.47,675.29,0.29616905]
[1738053943137,0.27183584,676.48,675.29,0.29616905]
[1738053943339,0.27183584,676.47,675.29,0.29616905]
[1738053943539,0.27183584,676.48,675.29,0.29616905]
[1738053943743,0.27183584,676.46,675.29,0.29616905]
[1738053944044,0.27183584,676.45,675.29,0.29616905]
[1738053944245,1.0988231,676.49,675.29,0.29616905]
[1738053944445,0.27184167,676.48,675.29,0.29616905]
[1738053944947,0.27184167,676.48,675.29,1.40067723]
[1738053945141,0.27184167,676.49,675.29,1.40067723]
[1738053945340,0.27184167,676.47,675.29,1.40067723]
[1738053945646,0.27184167,676.46,675.29,1.40067723]
[1738053945849,0.27184167,676.45,675.29,1.40067723]
[1738053946045,0.27184167,676.44,675.29,1.40067723]
[1738053946345,0.27184167,676.43,675.29,1.40067723]
[1738053946546,0.27184167,676.49,675.29,1.40067723]
[1738053946747,1.0988231,676.5,675.29,1.40067723]
[1738053946948,1.81640912,676.49,675.29,1.40067723]
[1738053947246,0.27187475,676.48,675.29,1.40067723]
[1738053948044,1.0988231,676.44,675.3,1.10450818]
[1738053948247,0.27187475,676.43,675.3,1.10450818]
[1738053948747,0.27187117,676.42,675.3,1.10450818]
[1738053948943,0.27187117,676.41,675.3,1.10450818]
[1738053949150,0.27187117,676.43,675.3,1.10450818]
[1738053949351,0.27187117,676.4,675.3,1.10450818]
[1738053949551,1.0988231,676.44,675.3,1.10450818]
[1738053949749,0.27187397,676.43,675.3,1.10450818]
[1738053950652,0.27187242,676.42,675.3,1.10450818]
[1738053950850,1.0988231,676.39,675.29,0.29616905]
[1738053951046,0.27187242,676.38,675.29,0.29616905]
[1738053951246,1.0988231,676.39,675.29,0.29616905]
[1738053951449,0.27189104,676.38,675.29,0.29616905]
[1738053951646,1.0988231,676.39,675.29,0.29616905]
[1738053951647,0.27189104,676.37,675.29,0.29616905]
[1738053951847,0.27189104,676.38,675.29,0.29616905]
[1738053952051,0.27189104,676.37,675.29,0.29616905]
[1738053952247,0.27189104,676.38,675.29,0.29616905]
[1738053952451,0.27189104,676.37,675.29,0.29616905]
[1738053952648,0.27189104,676.38,675.29,0.29616905]
[1738053952853,0.27189104,676.36,675.29,0.29616905]
[1738053953050,0.27189104,676.35,675.29,0.29616905]
[1738053953248,0.27189104,676.38,675.29,0.29616905]
[1738053953450,0.27189104,676.37,675.29,0.29616905]
[1738053953651,0.27189104,676.36,675.29,0.29616905]
[1738053953854,1.0988231,676.24,675.29,0.29616905]
[1738053954155,0.27189104,676.23,675.29,0.29616905]
[1738053955853,1.0988231,676.24,675.29,0.29616905]
[1738053956056,0.27189686,676.23,675.29,0.29616905]
[1738053957750,0.27189686,676.24,675.29,0.29616905]
[1738053957957,0.27189686,676.23,675.29,0.29616905]
[1738053958252,0.27189686,676.22,675.29,0.29616905]
[1738053958459,0.27189686,676.21,675.29,0.29616905]
[1738053958758,0.27189686,676.2,675.29,0.29616905]
[1738053959058,0.27189686,676.24,675.29,0.29616905]
[1738053964161,0.27189686,676.24,675.11,1.10450818]
[1738053965558,1.37071996,676.24,674.97,1.10450818]
[1738053968665,0.27189686,676.24,674.8,1.10450818]
[1738053968858,0.27189686,676.24,674.81,0.29637972]
[1738053970164,0.29575736,676.23,674.81,0.29637972]
[1738053971266,1.54531023,676.22,674.81,0.29637972]
[1738053977563,0.2957661,676.21,674.81,0.29637972]
[1738053982564,0.27189686,676.19,674.81,0.29637972]
[1738053982769,0.29577923,676.18,674.81,0.29637972]
[1738053982970,0.27189686,676.17,674.81,0.29637972]
[1738053987068,0.29578797,676.16,674.81,0.29637972]
[1738053987774,1.54569345,676.15,674.81,0.29637972]
[1738053988075,0.29579672,676.14,674.81,0.29637972]
[1738053997183,1.0988231,675.98,674.81,0.29637972]
[1738053998081,2.64472827,675.98,674.81,0.29637972]
[1738053998383,0.27189686,675.97,674.81,0.29637972]
[1738053999383,0.27208917,675.96,674.81,0.29637972]
[1738054000885,1.0988231,675.97,674.81,0.29637972]
[1738054001084,0.27208243,675.96,674.81,0.29637972]
[1738054001377,1.0988231,675.94,674.81,0.29637972]
[1738054001582,0.27208243,675.93,674.81,0.29637972]
[1738054002382,0.27208243,675.92,674.81,0.29637972]
[1738054002581,0.27208243,675.97,674.81,0.29637972]
[1738054002877,0.27208243,675.96,674.81,0.29637972]
[1738054003083,0.27208243,675.95,674.81,0.29637972]
[1738054003384,0.27208243,675.94,674.81,0.29637972]
[1738054003583,0.27208243,675.93,674.81,0.29637972]
[1738054003783,0.27208243,675.92,674.81,0.29637972]
[1738054003983,0.27208243,675.91,674.81,0.29637972]
[1738054004279,0.27208243,675.9,674.81,0.29637972]
[1738054004579,0.27208243,675.89,674.81,0.29637972]
[1738054004783,0.27208243,675.97,674.81,0.29637972]
[1738054004978,0.27208243,675.96,674.81,0.29637972]
[1738054005185,1.09892362,675.93,674.81,0.29637972]
[1738054005383,0.27208243,675.92,674.81,0.29637972]
[1738054006187,0.27208305,675.91,674.81,0.29637972]
[1738054006382,0.27208305,675.92,674.81,0.29637972]
[1738054006581,0.27208305,675.91,674.81,0.29637972]
[1738054006784,0.27208305,675.9,674.81,0.29637972]
[1738054006985,0.27208305,675.89,674.81,0.29637972]
[1738054007285,0.27208305,675.88,674.81,0.29637972]
[1738054007485,0.27208305,675.87,674.81,0.29637972]
[1738054007686,0.27208305,675.92,674.81,0.29637972]
[1738054007986,0.27208305,675.91,674.81,0.29637972]
[1738054008186,0.27208305,675.9,674.81,0.29637972]
[1738054008386,0.27208305,675.92,674.81,0.29637972]
[1738054008582,1.09892362,675.93,674.81,0.29637972]
[1738054008790,0.2720687,675.92,674.81,0.29637972]
[1738054014191,1.09892362,675.91,674.81,0.29637972]
[1738054019891,1.09892362,675.77,674.81,0.29637972]
[1738054023603,1.09892362,675.88,674.81,0.29637972]
[1738054026106,1.09892362,675.87,674.81,0.29637972]
[1738054028808,1.54608832,675.88,674.81,0.29637972]
[1738054029308,1.09892362,675.89,674.81,0.29637972]
[1738054031008,0.2720687,675.88,674.81,0.29637972]
[1738054033014,0.27208755,675.87,674.81,0.29637972]
[1738054033417,0.27208755,675.86,674.81,0.29637972]
[1738054033613,0.27208755,675.85,674.81,0.29637972]
[1738054033817,0.27208755,675.93,674.81,0.29637972]
[1738054034017,0.27208755,675.92,674.81,0.29637972]
[1738054034320,0.27208755,675.91,674.81,0.29637972]
[1738054034520,0.27208755,675.93,674.81,0.29637972]
[1738054034718,0.27208755,675.9,674.81,0.29637972]
[1738054034919,0.27208755,675.89,674.81,0.29637972]
[1738054035112,0.27208755,675.93,674.81,0.29637972]
[1738054035318,1.09892362,675.87,674.81,0.29637972]
[1738054035621,0.27208755,675.86,674.81,0.29637972]
[1738054037021,0.2720577,675.85,674.81,0.29637972]
[1738054037222,0.2720577,675.86,674.81,0.29637972]
[1738054037423,0.2720577,675.85,674.81,0.29637972]
[1738054037616,0.2720577,675.86,674.81,0.29637972]
[1738054037819,0.2720577,675.85,674.81,0.29637972]
[1738054038021,0.2720577,675.86,674.81,0.29637972]
[1738054038321,0.2720577,675.85,674.81,0.29637972]
[1738054038521,1.09892362,675.87,674.81,0.29637972]
[1738054038916,1.09892362,675.81,674.81,0.29637972]
[1738054042623,1.09892362,676.09,674.81,0.29637972]
[1738054042824,0.56791303,676.08,674.81,0.29637972]
[1738054043024,0.56791741,676.07,674.81,0.29637972]
[1738054043217,0.56792179,676.06,674.81,0.29637972]
[1738054043420,0.56792616,676.05,674.81,0.29637972]
[1738054043622,0.27209006,676.04,674.81,0.29637972]
[1738054044826,0.27209048,676.03,674.81,0.29637972]
[1738054045024,0.27209048,676.04,674.81,0.29637972]
[1738054045225,0.27209048,676.03,674.81,0.29637972]
[1738054045420,1.3710141,676.04,674.81,0.29637972]
[1738054045623,0.27209048,676.02,674.81,0.29637972]
[1738054045924,0.27209048,676.01,674.81,0.29637972]
[1738054046125,0.27209048,676.03,674.81,0.29637972]
[1738054046323,0.27209048,676.02,674.81,0.29637972]
[1738054046628,0.27209937,676.01,674.81,0.29637972]
[1738054046826,0.27209937,676.03,674.81,0.29637972]
[1738054047025,0.27209937,676.02,674.81,0.29637972]
[1738054047328,0.27209937,676.01,674.81,0.29637972]
[1738054047525,0.29585798,676.0,674.81,0.29637972]
[1738054047728,0.27209937,675.99,674.81,0.29637972]
[1738054050131,0.27210202,675.98,674.81,0.29637972]
[1738054050334,0.27210202,675.97,674.81,0.29637972]
[1738054050633,0.27210202,675.96,674.81,0.29637972]
[1738054050825,1.8417517,676.0,674.81,0.29637972]
[1738054050826,0.27210202,675.95,674.81,0.29637972]
[1738054051025,0.27210202,675.99,674.81,0.29637972]
[1738054051228,0.27210202,675.98,674.81,0.29637972]
[1738054051430,0.27210202,675.99,674.81,0.29637972]
[1738054051625,1.09892362,675.82,674.81,0.29637972]
[1738054051928,0.27210202,675.81,674.81,0.29637972]
[1738054052728,1.09892362,675.82,674.81,0.29637972]
[1738054054932,1.3947816,676.0,674.81,0.29637972]
[1738054055133,0.27205556,675.99,674.81,0.29637972]
[1738054062139,0.29585798,676.0,674.81,0.29637972]
[1738054062337,0.27200704,675.99,674.81,0.29637972]
[1738054062942,0.29585798,676.0,674.81,0.29637972]
[1738054063136,0.27200159,675.99,674.81,0.29637972]
[1738054063440,0.29585798,676.0,674.81,0.29637972]
[1738054066141,0.27199934,675.99,674.81,0.29637972]
[1738054066837,0.29585798,676.0,674.81,0.29637972]
[1738054067036,0.27198859,675.99,674.81,0.29637972]
[1738054067440,0.27199568,675.98,674.81,0.29637972]
[1738054067641,0.29585798,676.0,674.81,0.29637972]
[1738054067642,0.27199568,675.99,674.81,0.29637972]
[1738054067841,0.27199568,675.98,674.81,0.29637972]
[1738054068137,0.27199568,675.97,674.81,0.29637972]
[1738054068343,0.27199568,675.96,674.81,0.29637972]
[1738054068544,0.27199568,675.95,674.81,0.29637972]
[1738054068742,0.27199568,675.99,674.81,0.29637972]
[1738054068941,0.27199528,675.98,674.81,0.29637972]
[1738054069137,0.27199528,675.97,674.81,0.29637972]
[1738054069342,0.27199364,675.96,674.81,0.29637972]
[1738054069537,0.27199364,675.99,674.81,0.29637972]
[1738054069738,0.27199316,675.98,674.81,0.29637972]
[1738054069943,0.27199316,675.97,674.81,0.29637972]
[1738054070243,0.27199316,675.96,674.81,0.29637972]
[1738054070444,0.29585798,676.0,674.81,0.29637972]
[1738054070746,0.2719834,675.99,674.81,0.29637972]
[1738054071245,0.27198685,675.98,674.81,0.29637972]
[1738054071442,0.27198685,675.99,674.81,0.29637972]
[1738054071639,0.27198685,675.98,674.81,0.29637972]
[1738054071945,0.29585798,676.0,674.81,0.29637972]
[1738054071946,0.27198685,675.97,674.81,0.29637972]
[1738054072144,0.27198685,675.96,674.81,0.29637972]
[1738054072347,0.27198685,675.95,674.81,0.29637972]
[1738054072642,0.29585798,676.0,674.81,0.29637972]
[1738054072944,0.27198716,675.99,674.81,0.29637972]
[1738054074645,0.29585798,676.0,674.81,0.29637972]
[1738054074843,0.27198554,675.99,674.81,0.29637972]
[1738054081248,0.29585798,676.0,674.81,0.29637972]
[1738054081952,0.27198198,675.99,674.81,0.29637972]
[1738054082547,0.29585798,676.0,674.81,0.29637972]
[1738054083351,0.2719871,675.99,674.81,0.29637972]
[1738054083553,0.29585798,676.0,674.81,0.29637972]
[1738054084352,0.27198559,675.99,674.81,0.29637972]
[1738054084552,0.29585798,676.0,674.81,0.29637972]
[1738054094960,0.27197485,675.99,674.81,0.29637972]
[1738054100268,0.27197485,675.99,674.84,1.10818929]
[1738054100460,0.27197485,675.99,674.85,0.29636215]
[1738054103167,0.27197485,675.99,674.93,1.10818929]
[1738054106467,0.29585798,676.0,674.94,0.29632263]
[1738054106668,0.29585798,676.0,674.94,1.40451192]
[1738054109869,0.27197313,675.99,674.94,1.40451192]
[1738054111373,0.29585798,676.0,674.94,1.40451192]
[1738054120981,1.10203064,676.05,674.94,1.40451192]
[1738054121174,0.27197251,676.04,674.94,1.40451192]
[1738054126283,1.10203064,676.05,674.94,1.40451192]
[1738054127483,1.10203064,676.07,675.03,1.10818929]
[1738054128182,1.10203064,676.07,675.04,0.29627873]
[1738054129885,1.10203064,676.26,675.04,0.29627873]
[1738054130084,0.27192832,676.25,675.04,0.29627873]
[1738054131586,0.27192946,676.24,675.04,0.29627873]
[1738054131781,0.27192946,676.25,675.04,0.29627873]
[1738054140195,1.10203064,676.18,675.09,1.10818929]
[1738054140789,0.27192946,676.25,675.04,0.29627873]
[1738054148192,0.27192946,676.25,675.04,0.29627873]
[1738054149091,0.29565243,676.47,675.04,0.29627873]
[1738054153193,0.27184978,676.46,675.04,0.29627873]
[1738054156101,0.29565243,676.47,675.04,0.29627873]
[1738054159504,0.27185144,676.46,675.04,0.29627873]
[1738054162103,0.29565243,676.47,675.04,0.29627873]
[1738054162304,0.27184034,676.46,675.04,0.29627873]
[1738054162699,0.29565243,676.47,675.04,0.29627873]
[1738054173311,0.27185951,676.46,675.04,0.29627873]
[1738054174016,0.29565243,676.47,675.04,0.29627873]
[1738054183926,0.27188181,676.46,675.04,0.29627873]
[1738054188125,0.27188181,676.46,675.08,1.10409177]
[1738054188126,1.09994549,676.43,675.08,1.10409177]
[1738054188325,0.27188181,676.42,675.09,0.29625679]
[1738054189024,0.27187576,676.41,675.09,0.29625679]
[1738054189229,0.27187576,676.4,675.09,0.29625679]
[1738054189527,0.27187576,676.39,675.09,0.29625679]
[1738054189730,0.27187576,676.38,675.09,0.29625679]
[1738054189926,0.27187576,676.42,675.09,0.29625679]
[1738054190730,0.27188032,676.41,675.09,0.29625679]
[1738054190925,0.27188032,676.4,675.09,0.29625679]
[1738054191128,0.27188032,676.42,675.09,0.29625679]
[1738054191328,0.27188032,676.41,675.09,0.29625679]
[1738054191529,0.29565243,676.47,675.09,0.29625679]
[1738054191530,1.09994549,676.36,675.16,1.10409177]
[1738054191831,0.27188032,676.35,675.17,0.29622169]
[1738054194127,1.09994549,676.32,675.18,1.10409177]
[1738054194527,0.27188118,676.31,675.18,1.10409177]
[1738054197334,1.09994549,676.3,675.19,1.10409177]
[1738054197529,0.27188118,676.29,675.19,1.10409177]
[1738054199838,0.27188118,676.29,675.17,0.29622169]
[1738054199843,1.09994549,676.23,675.26,1.10409177]
[1738054200037,0.27188118,676.22,675.26,1.10409177]
[1738054201340,0.27193268,676.21,675.26,1.10409177]
[1738054201636,0.27193268,676.2,675.26,1.10409177]
[1738054201840,0.27193268,676.22,675.26,1.10409177]
[1738054202134,0.27193268,676.21,675.26,1.10409177]
[1738054202333,0.27193268,676.2,675.26,1.10409177]
[1738054202533,0.27193268,676.19,675.26,1.10409177]
[1738054202736,0.27193149,676.18,675.26,1.10409177]
[1738054203031,1.09994549,676.16,675.17,0.29622169]
[1738054203238,0.27193149,676.15,675.17,0.29622169]
[1738054203441,1.09994549,676.16,675.17,0.29622169]
[1738054203640,0.27193149,676.15,675.17,0.29622169]
[1738054204541,1.09994549,676.16,675.17,0.29622169]
[1738054207643,0.2719585,676.15,675.17,0.29622169]
[1738054208044,1.09994549,676.3,675.17,0.29622169]
[1738054208344,0.2719644,676.29,675.17,0.29622169]
[1738054208547,0.2719644,676.28,675.17,0.29622169]
[1738054208744,0.2719644,676.29,675.17,0.29622169]
[1738054208956,1.09994549,676.3,675.17,0.29622169]
[1738054208957,0.2719644,676.28,675.17,0.29622169]
[1738054209144,0.2719644,676.29,675.17,0.29622169]
[1738054209445,1.54513298,676.27,675.17,0.29622169]
[1738054209645,0.2719644,676.26,675.17,0.29622169]
[1738054210048,0.27197173,676.25,675.17,0.29622169]
[1738054210340,0.27197173,676.24,675.17,0.29622169]
[1738054210545,0.27197173,676.23,675.17,0.29622169]
[1738054210740,0.27197173,676.26,675.17,0.29622169]
[1738054210942,0.27197173,676.25,675.17,0.29622169]
[1738054211245,0.27197173,676.24,675.17,0.29622169]
[1738054211445,0.27197173,676.26,675.17,0.29622169]
[1738054211647,1.54513298,676.27,675.17,0.29622169]
[1738054211846,0.27196518,676.26,675.17,0.29622169]
[1738054212247,1.09994549,676.15,675.17,0.29622169]
[1738054212442,0.27196518,676.14,675.17,0.29622169]
[1738054213447,0.27196557,676.13,675.17,0.29622169]
[1738054213647,0.27196557,676.14,675.17,0.29622169]
[1738054213952,0.27196557,676.13,675.17,0.29622169]
[1738054214149,0.27196557,676.14,675.17,0.29622169]
[1738054214943,0.27196557,676.13,675.17,0.29622169]
[1738054215151,0.27196557,676.12,675.17,0.29622169]
[1738054215350,0.27196557,676.16,675.17,0.29622169]
[1738054215747,0.27195095,676.15,675.17,0.29622169]
[1738054215942,0.27195095,676.16,675.17,0.29622169]
[1738054216149,0.27195095,676.15,675.17,0.29622169]
[1738054216349,0.27195095,676.16,675.17,0.29622169]
[1738054216550,0.27195095,676.15,675.17,0.29622169]
[1738054216850,0.27195095,676.14,675.17,0.29622169]
[1738054217050,0.27195095,676.16,675.17,0.29622169]
[1738054217251,0.27195095,676.15,675.17,0.29622169]
[1738054217551,0.27195095,676.14,675.17,0.29622169]
[1738054217949,0.27195095,676.13,675.17,0.29622169]
[1738054218150,0.27195095,676.24,675.17,0.29622169]
[1738054218349,1.09994549,676.25,675.17,0.29622169]
[1738054218350,0.27195095,676.23,675.17,0.29622169]
[1738054218649,0.27195095,676.22,675.17,0.29622169]
[1738054218850,0.27195095,676.24,675.17,0.29622169]
[1738054219051,1.09994549,676.25,675.17,0.29622169]
[1738054219052,0.27195095,676.23,675.17,0.29622169]
[1738054219351,0.27195095,676.22,675.17,0.29622169]
[1738054219551,0.27195095,676.21,675.17,0.29622169]
[1738054219744,0.27195095,676.24,675.17,0.29622169]
[1738054219948,0.27195095,676.23,675.17,0.29622169]
[1738054220149,0.27195095,676.22,675.17,0.29622169]
[1738054220349,0.27195095,676.21,675.17,0.29622169]
[1738054220551,0.27195095,676.27,675.17,0.29622169]
[1738054220750,0.27195095,676.26,675.17,0.29622169]
[1738054220950,0.27195095,676.27,675.17,0.29622169]
[1738054221147,0.27195095,676.26,675.17,0.29622169]
[1738054221348,0.27195095,676.27,675.17,0.29622169]
[1738054221549,0.27195095,676.26,675.17,0.29622169]
[1738054221753,0.27195095,676.25,675.17,0.29622169]
[1738054221947,0.27195095,676.27,675.17,0.29622169]
[1738054222151,0.27195095,676.26,675.17,0.29622169]
[1738054222555,0.27195095,676.25,675.17,0.29622169]
[1738054222754,0.27195095,676.24,675.17,0.29622169]
[1738054223054,0.27195095,676.23,675.17,0.29622169]
[1738054223249,0.27195095,676.22,675.17,0.29622169]
[1738054223448,0.27195095,676.27,675.17,0.29622169]
[1738054223649,0.27195095,676.26,675.17,0.29622169]
[1738054223848,0.27195095,676.25,675.17,0.29622169]
[1738054224053,0.27195095,676.27,675.17,0.29622169]
[1738054224253,0.27195095,676.26,675.17,0.29622169]
[1738054224455,0.27195095,676.27,675.17,0.29622169]
[1738054224654,0.27195095,676.26,675.17,0.29622169]
[1738054224856,0.27195095,676.27,675.17,0.29622169]
[1738054225053,0.27195095,676.26,675.17,0.29622169]
[1738054225356,0.27195095,676.25,675.17,0.29622169]
[1738054225549,0.27195095,676.27,675.17,0.29622169]
[1738054225748,0.27195095,676.26,675.17,0.29622169]
[1738054225948,0.29573549,676.28,675.17,0.29622169]
[1738054226152,0.27193625,676.27,675.17,0.29622169]
[1738054227755,0.27194474,676.26,675.17,0.29622169]
[1738054227953,0.27194474,676.27,675.17,0.29622169]
[1738054228153,0.27194474,676.26,675.17,0.29622169]
[1738054228353,0.27194474,676.25,675.17,0.29622169]
[1738054228554,0.27194474,676.27,675.17,0.29622169]
[1738054228749,0.27194474,676.26,675.17,0.29622169]
[1738054228950,0.27194474,676.27,675.17,0.29622169]
[1738054229153,0.27194474,676.26,675.17,0.29622169]
[1738054229354,0.27194474,676.25,675.17,0.29622169]
[1738054229656,0.29573549,676.28,675.17,0.29622169]
[1738054229657,0.27194474,676.24,675.17,0.29622169]
[1738054229851,0.27194474,676.27,675.17,0.29622169]
[1738054230053,0.27194474,676.26,675.17,0.29622169]
[1738054230257,0.27194474,676.27,675.17,0.29622169]
[1738054231056,1.54520159,676.26,675.17,0.29622169]
[1738054231251,0.27194474,676.25,675.17,0.29622169]
[1738054231454,0.27200035,676.24,675.17,0.29622169]
[1738054231655,0.27200035,676.23,675.17,0.29622169]
[1738054231852,1.54520159,676.26,675.17,0.29622169]
[1738054231853,0.27200035,676.22,675.17,0.29622169]
[1738054232057,0.27200035,676.25,675.17,0.29622169]
[1738054232250,0.27200035,676.24,675.17,0.29622169]
[1738054232455,0.27200035,676.25,675.17,0.29622169]
[1738054232653,0.27200035,676.24,675.17,0.29622169]
[1738054232852,0.27200035,676.23,675.17,0.29622169]
[1738054233054,0.27200035,676.25,675.17,0.29622169]
[1738054233257,0.27200035,676.24,675.17,0.29622169]
[1738054233455,0.27200035,676.25,675.17,0.29622169]
[1738054233656,1.37194584,676.25,675.17,0.29622169]
[1738054233852,0.27200035,676.24,675.17,0.29622169]
[1738054234761,1.09994549,676.25,675.17,0.29622169]
[1738054234961,0.567759,676.24,675.17,0.29622169]
[1738054235259,0.27200602,676.23,675.17,0.29622169]
[1738054236859,1.09994549,676.21,675.17,0.29622169]
[1738054237062,0.27200602,676.2,675.17,0.29622169]
[1738054238461,0.27200347,676.19,675.17,0.29622169]
[1738054238661,0.27200347,676.2,675.17,0.29622169]
[1738054238854,0.27200347,676.19,675.17,0.29622169]
[1738054239058,0.27200347,676.18,675.17,0.29622169]
[1738054239260,0.27200347,676.17,675.17,0.29622169]
[1738054239461,0.27200347,676.2,675.17,0.29622169]
[1738054239764,0.27200347,676.19,675.17,0.29622169]
[1738054239962,1.09994549,676.21,675.17,0.29622169]
[1738054239963,0.27200347,676.2,675.17,0.29622169]
[1738054240263,0.27200347,676.19,675.17,0.29622169]
[1738054240464,0.27200347,676.2,675.17,0.29622169]
[1738054240666,0.27200347,676.19,675.17,0.29622169]
[1738054240964,0.27200347,676.18,675.17,0.29622169]
[1738054241358,0.27200347,676.17,675.17,0.29622169]
[1738054241559,0.27200347,676.21,675.17,0.29622169]
[1738054241864,0.27200347,676.2,675.17,0.29622169]
[1738054242063,0.27199752,676.19,675.17,0.29622169]
[1738054242364,0.27199752,676.18,675.17,0.29622169]
[1738054242563,0.27199752,676.17,675.17,0.29622169]
[1738054242763,0.27199752,676.16,675.17,0.29622169]
[1738054242959,0.27199752,676.23,675.17,0.29622169]
[1738054243662,0.29575298,676.24,675.17,0.29622169]
[1738054243864,0.27199746,676.23,675.17,0.29622169]
[1738054245366,0.29575298,676.24,675.17,0.29622169]
[1738054245565,0.27199814,676.23,675.17,0.29622169]
[1738054246061,0.27199814,676.22,675.17,0.29622169]
[1738054246265,0.27199814,676.23,675.17,0.29622169]
[1738054246562,1.102541,676.11,675.17,0.29622169]
[1738054246869,0.27199814,676.1,675.17,0.29622169]
[1738054247367,1.102541,676.11,675.17,0.29622169]
[1738054247571,0.27199675,676.1,675.17,0.29622169]
[1738054249167,1.102541,676.11,675.17,0.29622169]
[1738054249364,0.27197948,676.1,675.17,0.29622169]
[1738054250070,0.27197948,676.09,675.17,0.29622169]
[1738054250262,0.27197948,676.14,675.17,0.29622169]
[1738054250967,1.102541,676.15,675.17,0.29622169]
[1738054251168,0.2719825,676.14,675.17,0.29622169]
[1738054252671,1.102541,676.18,675.17,0.29622169]
[1738054252672,0.2719825,676.13,675.17,0.29622169]
[1738054252862,1.102541,676.18,675.17,0.29622169]
[1738054253067,0.27199831,676.17,675.17,0.29622169]
[1738054253670,0.27199831,676.16,675.17,0.29622169]
[1738054253870,0.27199831,676.15,675.17,0.29622169]
[1738054254068,0.27199831,676.14,675.17,0.29622169]
[1738054254268,0.27199831,676.13,675.17,0.29622169]
[1738054254466,0.27199831,676.12,675.17,0.29622169]
[1738054254771,0.2719986,676.11,675.17,0.29622169]
[1738054254967,0.2719986,676.17,675.17,0.29622169]
[1738054255173,0.2719986,676.16,675.17,0.29622169]
[1738054255375,1.102541,676.04,675.17,0.29622169]
[1738054255566,0.2719986,676.03,675.17,0.29622169]
[1738054256373,0.27199905,676.02,675.17,0.29622169]
[1738054256569,0.27199905,676.03,675.17,0.29622169]
[1738054256779,0.27199905,676.02,675.17,0.29622169]
[1738054256974,0.27199905,676.03,675.17,0.29622169]
[1738054257275,0.27199905,676.02,675.17,0.29622169]
[1738054257473,0.27199905,676.03,675.17,0.29622169]
[1738054257669,0.27199905,676.02,675.17,0.29622169]
[1738054257878,0.27199905,676.01,675.17,0.29622169]
[1738054258171,1.102541,676.04,675.17,0.29622169]
[1738054258172,0.27199905,676.0,675.17,0.29622169]
[1738054258372,0.27199905,676.03,675.17,0.29622169]
[1738054258573,0.27199905,676.02,675.17,0.29622169]
[1738054258776,0.29575298,676.24,675.17,0.29622169]
[1738054258777,0.27199905,676.01,675.17,0.29622169]
[1738054258976,0.27199905,676.02,675.17,0.29622169]
[1738054259275,0.27199905,676.01,675.17,0.29622169]
[1738054259477,0.27199905,676.0,675.17,0.29622169]
[1738054259677,0.27199905,676.02,675.17,0.29622169]
[1738054259874,0.27199905,676.01,675.17,0.29622169]
[1738054260073,0.27199905,676.02,675.17,0.29622169]
[1738054260278,0.27199905,676.01,675.17,0.29622169]
[1738054260481,0.27199905,676.02,675.17,0.29622169]
[1738054260678,0.27199905,676.01,675.17,0.29622169]
[1738054260878,0.27199905,676.02,675.17,0.29622169]
[1738054261178,0.27199905,676.01,675.17,0.29622169]
[1738054261580,0.27199905,676.0,675.17,0.29622169]
[1738054261880,0.27199905,675.99,675.17,0.29622169]
[1738054262280,0.27199905,675.98,675.17,0.29622169]